{"text_format":"1","workbook":"xlsx","n_sheets":3,"sheets":["GPP tekst","GPP","JAP"],"not_rendered":{"charts":1,"images":2,"macros":1,"external_links":0,"defined_names":2,"comments":0,"pivot_tables":0},"unopened":[],"bounds":{"document_bytes":16777216,"sheet_cells":100000,"rows_first":2000,"rows_last":500,"rows_between":2000,"halvings":0,"cell_chars":16384,"cell_head_chars":4096},"cells_cut":0,"cells_raw":0,"read":"whole","date_system":"1900"}

{"sheet":"GPP tekst","index":0,"n_rows":88,"n_cols":6,"rows_kept":88,"cut":false,"hidden":false,"merged":[[24,1,24,5],[0,0,1,1],[1,2,1,3],[2,0,2,5],[19,1,19,5],[20,1,20,5],[21,1,21,5],[22,1,22,5],[23,1,23,5],[0,4,1,4],[36,1,36,5],[25,1,25,5],[26,1,26,5],[27,1,27,5],[28,1,28,5],[29,1,29,5],[30,1,30,5],[31,1,31,5],[32,1,32,5],[33,1,33,5],[34,1,34,5],[35,1,35,5],[53,1,53,5],[37,1,37,5],[38,1,38,5],[39,1,39,5],[41,1,41,5],[42,1,42,5],[47,1,47,5],[48,1,48,5],[49,1,49,5],[50,1,50,5],[51,1,51,5],[52,1,52,5],[75,2,75,4],[54,1,54,5],[55,1,55,5],[61,1,61,5],[62,1,62,5],[63,1,63,5],[64,1,64,5],[65,1,65,5],[67,1,67,5],[68,1,68,5],[69,1,69,5],[70,1,70,5],[87,2,87,4],[76,2,76,4],[77,2,77,4],[78,2,78,4],[79,2,79,4],[80,2,80,4],[81,2,81,4],[82,2,82,4],[83,2,83,4],[84,2,84,4],[85,2,85,4],[86,2,86,4]]}
["logo klant",null," Datum opstelling:",{"$f":"GPP!$D$1","v":"dd/mm/jjjj"},"Versie: dd/mm/jjjj","i.s.m. ______________"]
[null,null,{"$f":"GPP!$C$2","v":" Van:"}]
[{"$f":"GPP!$A$4","v":"Actieplan ter aanvulling van het Globaal PreventiePlan 20xx-20xx"}]
[]
[]
[]
[]
[]
[]
[null,"Goedkeuring voor dit document"]
[]
[null,null,"Werkgever","IDPB","EDPB","CPBW"]
[null,"Datum"]
[null,"Naam"]
[null,"Handtekening"]
[]
[]
["1    Identificatie van gevaren, vaststellen, nader bepalen en evalueren van risico's"]
[]
[null,"De onderwerpen voor het globaal preventieplan zijn gebaseerd op de risicoanalyse en deze gebeurt vanuit verschillende invalshoeken, niet limitatief hieronder opgesomd :"]
[null,"a)     De risico inventarisatie en evaluatie (RIE)"]
[null,"Dit zal gebeuren door middel van een vastgelegde methode (vb Kinney)   die erop gericht is om alle risico's te inventariseren, te evalueren en te registreren "]
[null,"b)    De genoemde risico’s in externe documenten"]
[null,"o    Het bezoek van de preventieadviseur van  Mensura EDPB vzw"]
[null,"o    de verslagen van de externe diensten voor technische controle"]
[null,"o    de PV’s van ambtenaren Toezicht Welzijn op het Werk"]
[null,"o    Het verslag van de verzekeraar, bevoegde brandweerdiensten,..."]
[null,"c)     De arbeidsongevallen en incidenten"]
[null,"o    verslagen van onderzochte arbeidsongevallen"]
[null,"o    ongevallencijfers en statistieken  (maandverslagen en jaarverslag van IDPBW)"]
[null,"d)    afwijkingen en inbreuken"]
[null,"Non-conformiteiten met betrekking tot wettelijke bepalingen zoals beschreven in de Codex, het ARAB en alle andere van toepassing zijnde regelgeving."]
[null,"e)     Bijkomende elementen:"]
[null,"o    risicopostenlijst gezondheidstoezicht werknemers"]
[null,"o    inventaris van gevaarlijke producten "]
[]
[null,"De risicoanalyse wordt uitgevoerd op  "]
[null,"Ø  het niveau van de organisatie in de onderneming, en"]
[null,"Ø  op het niveau van de werkposten en "]
[null,"Ø  op het niveau van het individu"]
[]
[null,"Aan de hand van de resultaten van de risicoanalyse worden mogelijke preventiemaatregelen ontwikkeld. "]
[null,"De selectie van de prioriteit, de uitwerkingsmodaliteiten en middelen voor het realiseren van de preventiemaatregelen gebeurt in overleg met de directie, de hiërarchische lijn en de interne preventiedienst."]
[]
["2    Doelstellingen van het dynamisch risicobeheersingssysteem"]
[]
[null,"De onderneming wil onderstaande doelstellingen bereiken binnen een termijn van vijf jaar:"]
[null,"1. voldoen aan de wettelijke bepalingen inzake ‘welzijn op het werk’*"]
[null,"2. ons in orde stellen t.o.v. de opmerkingen geformuleerd door de externe dienst PBW;"]
[null,"3. het centraal stellen van het arbeidscomfort;"]
[null,"4. bereiken van  een veiligheidsniveau bereiken en handhaven dat boven het gemiddelde van de sector ligt. "]
[null,"5. een daling van de ernst en de frequentiegraad van de arbeidsongevallen;"]
[null,"6. efficiënt kunnen handelen bij noodgevallen en ongevallen;"]
[null,"7. beter beheersen van de risicovolle activiteiten binnen onze onderneming door programmatie van te bereiken doelstellingen en het uitvoeren van preventieve \n    acties voor een termijn van vijf jaar"]
[null,"8. Voeren van een samenhangend welzijnsbeleid in de onderneming"]
[null,"9. Streven naar een voortdurende verbetering worden, waarbij de risico’s worden gereduceerd tot aanvaardbare risico’s."]
[]
[null,"* Welzijnswet van 4 augustus 1996 en het uitvoeringsbesluit van 27 maart 1998 (B.S. 31 maart 1998) Art. 10, "]
[]
["3    Evaluatie- en aanpassingsmodaliteiten van het GPP"]
[]
[null,"Het globaal preventieplan en zijn uitvoering, zullen elk jaar geëvalueerd worden in functie van evaluatiecriteria"]
[null,"Evaluatie criteria"]
[null,"Het welzijnsbeleid zal worden geëvalueerd aan de hand van de evolutie van de frequentiegraad en ernstgraad van de ongevallen. De vergelijking gebeurt ten opzichte van sectorgemiddelden."]
[null,"Evaluatiecriteria dienen aangepast te zijn aan het specifieke actiepunt en worden opgenomen in de tabel GPP"]
[null,"De evaluatie gebeurt minstens één maal per jaar door IDPBW, in samenwerking met EDPBW."]
[]
[null,"Aanpassingsmodaliteiten"]
[null,"Bij wijzigende omstandigheden kunnen alle acties van het globaal preventieplan herzien en aangepast worden in functie van de omstandigheden, de noodzaak en de tijdsbeschikking. Gewijzigde omstandigheden kunnen betrekking hebben op arbeidsongevallen, arbeidsmethoden, arbeidsmiddelen, categorie van werknemers, gewijzigde regelgeving of normen"]
[null,"Bevraging van werknemers en derden, adviezen van de werknemersafvaardiging (CPBW)"]
[null,"Ingevolge een advies of bezoek van de toezicht belaste ambtenaren van FOD WASO, externe diensten EDPBW, EDTC,…"]
[]
[]
["4    Gebruikte afkortingen"]
[]
[null,"CBM","Collectieve beschermingsmiddelen (leuningen, afschermingen, ...)"]
[null,"EDPBW","Externe Dienst voor Preventie en Bescherming op het Werk (Mensura EDPB)"]
[null,"EDTC","Externe Dienst voor Technische Controle"]
[null,"GPP","Globaal preventieplan"]
[null,"HL","Hiërarchische lijn"]
[null,"IDPBW","Interne Dienst voor Preventie en Bescherming op het Werk"]
[null,"IPA","Interne preventieadviseur"]
[null,"JAP","Jaarlijks Actie Plan"]
[null,"PA AG","Preventieadviseur – arbeidsgeneesheer"]
[null,"PA HY","Preventieadviseur – hygiëne"]
[null,"PBM","Persoonlijke beschermingsmiddelen (helm, harnas, veiligheidsschoenen, ...)"]
[null,"WG","Werkgever"]
[null,"WN","Werknemer"]

{"sheet":"GPP","index":1,"n_rows":76,"n_cols":17,"rows_kept":76,"cut":false,"hidden":false,"merged":[[3,0,3,3],[3,4,3,10],[2,0,2,1],[0,0,1,1],[1,2,1,3],[2,2,2,3]]}
["logo klant",null," Datum opstelling:","dd/mm/jjjj",null,null,null,null,null,null,null,{"$f":"VALUE(RIGHT(A4,2))","v":{"$error":"#VALUE!"}},{"$f":"JAP!C1","v":" Datum opstelling:"},{"$f":"#REF!","v":{"$error":"#REF!"}},{"$f":"#REF!","v":{"$error":"#REF!"}},{"$f":"#REF!","v":{"$error":"#REF!"}},{"$f":"#REF!","v":{"$error":"#REF!"}}]
[null,null," Van:",null,"i.s.m. ",null,null,null,null,null,null,null,{"$f":"TODAY()","v":"2021-07-14"},"JAP",{"$f":"Q2","v":2021},{"$f":"VALUE(RIGHT(O2,2))","v":21},{"$f":"IF(MONTH(M2)<10,YEAR(M2),(YEAR(M2)+1))","v":2021}]
["Preventiebeleid",null," Aan:  comité, werkgever, hiërarchische lijn",null,null,null,null,null,null,null,null,null,{"$f":"CONCATENATE(\"20\",($L$1-4))","v":{"$error":"#VALUE!"}},{"$f":"CONCATENATE(\"20\",($L$1-3))","v":{"$error":"#VALUE!"}},{"$f":"CONCATENATE(\"20\",($L$1-2))","v":{"$error":"#VALUE!"}},{"$f":"CONCATENATE(\"20\",($L$1-1))","v":{"$error":"#VALUE!"}},{"$f":"CONCATENATE(\"20\",($L$1))","v":{"$error":"#VALUE!"}}]
["Actieplan ter aanvulling van het Globaal PreventiePlan 20xx-20xx",null,null,null,null,null,null,null,null,null,null,null,{"$f":"E15+E24+E33+E41+E49+E60+E67+E74","v":0},{"$f":"F15+F24+F33+F41+F49+F60+F67+F74","v":0},{"$f":"G15+G24+G33+G41+G49+G60+G67+G74","v":0},{"$f":"H15+H24+H33+H41+H49+H60+H67+H74","v":0},{"$f":"I15+I24+I33+I41+I49+I60+I67+I74","v":0}]
[]
["0.","Welzijnsbeleid algemeen",null,null,null,null,null,null,null,null,null,null,{"$f":"IFERROR(M1,0)","v":" Datum opstelling:"},{"$f":"IFERROR(N1,0)","v":0},{"$f":"IFERROR(O1,0)","v":0},{"$f":"IFERROR(P1,0)","v":0},{"$f":"IFERROR(Q1,0)","v":0}]
["Nr.","Doelstellingen","Anomalieën/opgespoorde risico's","Preventiemaatregelen",{"$f":"CONCATENATE(\"'\",($L$1-4))","v":{"$error":"#VALUE!"}},{"$f":"CONCATENATE(\"'\",($L$1-3))","v":{"$error":"#VALUE!"}},{"$f":"CONCATENATE(\"'\",($L$1-2))","v":{"$error":"#VALUE!"}},{"$f":"CONCATENATE(\"'\",($L$1-1))","v":{"$error":"#VALUE!"}},{"$f":"CONCATENATE(\"'\",($L$1))","v":{"$error":"#VALUE!"}},"Verantwoordelijken","Budget","Evaluatie"]
[]
[]
[]
[]
[]
[]
[]
[null,null,null,null,{"$f":"COUNTA(E$7:E$14) - 1","v":0},{"$f":"COUNTA(F$7:F$14) - 1","v":0},0,0,0]
["1.","Arbeidsveiligheid"]
["Nr.","Doelstellingen","Anomalieën/opgespoorde risico's","Preventiemaatregelen",{"$f":"CONCATENATE(\"'\",($L$1-4))","v":{"$error":"#VALUE!"}},{"$f":"CONCATENATE(\"'\",($L$1-3))","v":{"$error":"#VALUE!"}},{"$f":"CONCATENATE(\"'\",($L$1-2))","v":{"$error":"#VALUE!"}},{"$f":"CONCATENATE(\"'\",($L$1-1))","v":{"$error":"#VALUE!"}},{"$f":"CONCATENATE(\"'\",($L$1))","v":{"$error":"#VALUE!"}},"Verantwoordelijken","Budget","Evaluatie"]
[]
[]
[]
[]
[]
[]
[null,null,null,null,{"$f":"COUNTA(E$17:E$23) - 1","v":0},{"$f":"COUNTA(F$17:F$23) - 1","v":0},0,0,0]
["2.","Bescherming van de gezondheid van de werknemers op het werk"]
["Nr.","Doelstellingen","Anomalieën/opgespoorde risico's","Preventiemaatregelen",{"$f":"CONCATENATE(\"'\",($L$1-4))","v":{"$error":"#VALUE!"}},{"$f":"CONCATENATE(\"'\",($L$1-3))","v":{"$error":"#VALUE!"}},{"$f":"CONCATENATE(\"'\",($L$1-2))","v":{"$error":"#VALUE!"}},{"$f":"CONCATENATE(\"'\",($L$1-1))","v":{"$error":"#VALUE!"}},{"$f":"CONCATENATE(\"'\",($L$1))","v":{"$error":"#VALUE!"}},"Verantwoordelijken","Budget","Evaluatie"]
[]
[]
[]
[]
[]
[]
[null,null,null,null,{"$f":"COUNTA(E$26:E$32) - 1","v":0},{"$f":"COUNTA(F$26:F$32) - 1","v":0},0,0,0]
["3.","Psychosociale risico's op het werk"]
["Nr.","Doelstellingen","Anomalieën/opgespoorde risico's","Preventiemaatregelen",{"$f":"CONCATENATE(\"'\",($L$1-4))","v":{"$error":"#VALUE!"}},{"$f":"CONCATENATE(\"'\",($L$1-3))","v":{"$error":"#VALUE!"}},{"$f":"CONCATENATE(\"'\",($L$1-2))","v":{"$error":"#VALUE!"}},{"$f":"CONCATENATE(\"'\",($L$1-1))","v":{"$error":"#VALUE!"}},{"$f":"CONCATENATE(\"'\",($L$1))","v":{"$error":"#VALUE!"}},"Verantwoordelijken","Budget","Evaluatie"]
[]
[]
[]
[]
[]
[null,null,null,null,{"$f":"COUNTA(E$35:E$40) - 1","v":0},{"$f":"COUNTA(F$35:F$40) - 1","v":0},0,0,0]
["4.","Ergonomie"]
["Nr.","Doelstellingen","Anomalieën/opgespoorde risico's","Preventiemaatregelen",{"$f":"CONCATENATE(\"'\",($L$1-4))","v":{"$error":"#VALUE!"}},{"$f":"CONCATENATE(\"'\",($L$1-3))","v":{"$error":"#VALUE!"}},{"$f":"CONCATENATE(\"'\",($L$1-2))","v":{"$error":"#VALUE!"}},{"$f":"CONCATENATE(\"'\",($L$1-1))","v":{"$error":"#VALUE!"}},{"$f":"CONCATENATE(\"'\",($L$1))","v":{"$error":"#VALUE!"}},"Verantwoordelijken","Budget","Evaluatie"]
[]
[]
[]
[]
[]
[null,null,null,null,{"$f":"COUNTA(E$43:E$43) - 1","v":0},{"$f":"COUNTA(F$43:F$43) - 1","v":0},0,0,0]
["5.","Arbeidshygiëne"]
["Nr.","Doelstellingen","Anomalieën/opgespoorde risico's","Preventiemaatregelen",{"$f":"CONCATENATE(\"'\",($L$1-4))","v":{"$error":"#VALUE!"}},{"$f":"CONCATENATE(\"'\",($L$1-3))","v":{"$error":"#VALUE!"}},{"$f":"CONCATENATE(\"'\",($L$1-2))","v":{"$error":"#VALUE!"}},{"$f":"CONCATENATE(\"'\",($L$1-1))","v":{"$error":"#VALUE!"}},{"$f":"CONCATENATE(\"'\",($L$1))","v":{"$error":"#VALUE!"}},"Verantwoordelijken","Budget","Evaluatie"]
[]
[]
[]
[]
[]
[]
[]
[]
[null,null,null,null,{"$f":"COUNTA(E$51:E$51) - 1","v":0},{"$f":"COUNTA(F$51:F$51) - 1","v":0},0,0,0]
["6.","Verfraaiing van de werkplaatsen"]
["Nr.","Doelstellingen","Anomalieën/opgespoorde risico's","Preventiemaatregelen",{"$f":"CONCATENATE(\"'\",($L$1-4))","v":{"$error":"#VALUE!"}},{"$f":"CONCATENATE(\"'\",($L$1-3))","v":{"$error":"#VALUE!"}},{"$f":"CONCATENATE(\"'\",($L$1-2))","v":{"$error":"#VALUE!"}},{"$f":"CONCATENATE(\"'\",($L$1-1))","v":{"$error":"#VALUE!"}},{"$f":"CONCATENATE(\"'\",($L$1))","v":{"$error":"#VALUE!"}},"Verantwoordelijken","Budget","Evaluatie"]
[]
[]
[]
[]
[null,null,null,null,{"$f":"COUNTA(E$62:E$62) - 1","v":0},{"$f":"COUNTA(F$62:F$62) - 1","v":0},0,0,0]
[]
["7.","Maatregelen getroffen door de onderneming inzake milieu, in zoverre deze een invloed hebben op de punten 1 tot 6"]
["Nr.","Doelstellingen","Anomalieën/opgespoorde risico's","Preventiemaatregelen",{"$f":"CONCATENATE(\"'\",($L$1-4))","v":{"$error":"#VALUE!"}},{"$f":"CONCATENATE(\"'\",($L$1-3))","v":{"$error":"#VALUE!"}},{"$f":"CONCATENATE(\"'\",($L$1-2))","v":{"$error":"#VALUE!"}},{"$f":"CONCATENATE(\"'\",($L$1-1))","v":{"$error":"#VALUE!"}},{"$f":"CONCATENATE(\"'\",($L$1))","v":{"$error":"#VALUE!"}},"Verantwoordelijken","Budget","Evaluatie"]
[]
[]
[]
[null,null,null,null,{"$f":"COUNTA(E$70:E$70) - 1","v":0},{"$f":"COUNTA(F$70:F$70) - 1","v":0},0,0,0]
[]
[null,null,null,"laten staan !!!!!!",{"$f":"CONCATENATE(\"'\",($L$1-4))","v":{"$error":"#VALUE!"}}]

{"sheet":"JAP","index":2,"n_rows":70,"n_cols":8,"rows_kept":70,"cut":false,"hidden":false,"merged":[[3,4,3,6],[0,0,1,1],[1,2,1,3],[2,0,2,1],[2,2,2,3],[3,0,3,3]]}
["logo klant",null," Datum opstelling:",null,"i.s.m. "]
[null,null," Van:"]
["Preventiebeleid",null," Aan:  comité, werkgever, hiërarchische lijn"]
["Jaarlijks actieplan 20xx"]
[]
["0.","Welzijnsbeleid algemeen"]
["Nr.","Doelstellingen","Anomalieën/opgespoorde risico's","Preventiemaatregelen","Acties en uitvoeringstermijnen","Verantwoor-delijken","Budget","Evaluatie"]
[]
[]
[]
[]
[]
[]
[]
["1.","Arbeidsveiligheid"]
["Nr.","Doelstellingen","Anomalieën/opgespoorde risico's","Preventiemaatregelen","Acties en uitvoeringstermijnen","Verantwoor-delijken","Budget","Evaluatie"]
[]
[]
[]
[]
[]
[]
[]
["2.","Bescherming van de gezondheid van de werknemers op het werk"]
["Nr.","Doelstellingen","Anomalieën/opgespoorde risico's","Preventiemaatregelen","Acties en uitvoeringstermijnen","Verantwoor-delijken","Budget","Evaluatie"]
[]
[]
[]
[]
[]
[]
[]
["3.","Psychosociale risico's op het werk"]
["Nr.","Doelstellingen","Anomalieën/opgespoorde risico's","Preventiemaatregelen","Acties en uitvoeringstermijnen","Verantwoor-delijken","Budget","Evaluatie"]
[]
[]
[]
[]
[]
[]
[]
["4.","Ergonomie"]
["Nr.","Doelstellingen","Anomalieën/opgespoorde risico's","Preventiemaatregelen","Acties en uitvoeringstermijnen","Verantwoor-delijken","Budget","Evaluatie"]
[]
[]
[]
[]
[]
[]
[]
["5.","Arbeidshygiëne"]
["Nr.","Doelstellingen","Anomalieën/opgespoorde risico's","Preventiemaatregelen","Acties en uitvoeringstermijnen","Verantwoor-delijken","Budget","Evaluatie"]
[]
[]
[]
[]
[]
[]
[]
["6.","Verfraaiing van de werkplaatsen"]
["Nr.","Doelstellingen","Anomalieën/opgespoorde risico's","Preventiemaatregelen","Acties en uitvoeringstermijnen","Verantwoor-delijken","Budget","Evaluatie"]
[]
[]
[]
[]
["7.","Maatregelen getroffen door de onderneming inzake milieu, in zoverre deze een invloed hebben op de punten 1 tot 6"]
["Nr.","Doelstellingen","Anomalieën/opgespoorde risico's","Preventiemaatregelen","Acties en uitvoeringstermijnen","Verantwoor-delijken","Budget","Evaluatie"]
[]
[]
[null,null,null,"laten staan !!!!!!"]